{"text_format":"1","workbook":"xlsx","n_sheets":3,"sheets":["Result","City State","Web Info"],"not_rendered":{"charts":0,"images":0,"macros":1,"external_links":0,"defined_names":147,"comments":0,"pivot_tables":0},"unopened":[],"bounds":{"document_bytes":16777216,"sheet_cells":100000,"rows_first":2000,"rows_last":500,"rows_between":2000,"halvings":0,"cell_chars":16384,"cell_head_chars":4096},"cells_cut":0,"cells_raw":0,"read":"whole","date_system":"1900"}

{"sheet":"Result","index":0,"n_rows":18,"n_cols":2,"rows_kept":18,"cut":false,"hidden":false,"merged":[]}
[]
["Cost of Living","Birmingham, AL"]
["Overall",78]
["Grocery",92]
["Health",78]
["Housing",51]
["Utilities",103]
["Transportation",86]
["Miscellaneous",95]
[]
[]
["Lowest Overall","Birmingham, AL"]
["Lowest Grocery","Birmingham, AL"]
["Lowest Health","Birmingham, AL"]
["Lowest Housing","Birmingham, AL"]
["Lowest Utilities","Birmingham, AL"]
["Lowest Transportation","Birmingham, AL"]
["Lowest Miscellaneous","Birmingham, AL"]

{"sheet":"City State","index":1,"n_rows":297,"n_cols":8,"rows_kept":297,"cut":false,"hidden":false,"merged":[[2,6,3,6]]}
[]
["City","States","Postal Code"]
["Anchorage","Alaska",{"$f":"VLOOKUP(B3,$G$5:$H$54,2)","v":"AK"},null,null,null,"State","Postal "]
["Birmingham","Alabama","AL",null,null,null,null,"code"]
["Montgomery","Alabama","AL",null,null,null,"Alabama","AL"]
["Mobile","Alabama","AL",null,null,null,"Alaska","AK"]
["Huntsville","Alabama","AL",null,null,null,"Arizona","AZ"]
["Little Rock","Arkansas","AR",null,null,null,"Arkansas","AR"]
["Phoenix","Arizona","AZ",null,null,null,"California","CA"]
["Tucson","Arizona","AZ",null,null,null,"Colorado","CO"]
["Mesa","Arizona","AZ",null,null,null,"Connecticut","CT"]
["Chandler","Arizona","AZ",null,null,null,"Delaware","DE"]
["Glendale","Arizona","AZ",null,null,null,"Florida","FL"]
["Gilbert","Arizona","AZ",null,null,null,"Georgia","GA"]
["Scottsdale","Arizona","AZ",null,null,null,"Hawaii","HI"]
["Tempe","Arizona","AZ",null,null,null,"Idaho","ID"]
["Peoria","Arizona","AZ",null,null,null,"Illinois","IL"]
["Surprise","Arizona","AZ",null,null,null,"Indiana","IN"]
["Los Angeles","California","CA",null,null,null,"Iowa","IA"]
["San Diego","California","CA",null,null,null,"Kansas","KS"]
["San Jose","California","CA",null,null,null,"Kentucky","KY"]
["San Francisco","California","CA",null,null,null,"Louisiana","LA"]
["Fresno","California","CA",null,null,null,"Maine","ME"]
["Sacramento","California","CA",null,null,null,"Maryland","MD"]
["Long Beach","California","CA",null,null,null,"Massachusetts","MA"]
["Oakland","California","CA",null,null,null,"Michigan","MI"]
["Bakersfield","California","CA",null,null,null,"Minnesota","MN"]
["Anaheim","California","CA",null,null,null,"Mississippi","MS"]
["Santa Ana","California","CA",null,null,null,"Missouri","MO"]
["Riverside","California","CA",null,null,null,"Montana","MT"]
["Stockton","California","CA",null,null,null,"Nebraska","NE"]
["Chula Vista","California","CA",null,null,null,"Nevada","NV"]
["Irvine","California","CA",null,null,null,"New Hampshire","NH"]
["Fremont","California","CA",null,null,null,"New Jersey","NJ"]
["San Bernardino","California","CA",null,null,null,"New Mexico","NM"]
["Modesto","California","CA",null,null,null,"New York","NY"]
["Oxnard","California","CA",null,null,null,"North Carolina","NC"]
["Fontana","California","CA",null,null,null,"North Dakota","ND"]
["Moreno Valley","California","CA",null,null,null,"Ohio","OH"]
["Huntington Beach","California","CA",null,null,null,"Oklahoma","OK"]
["Glendale","California","CA",null,null,null,"Oregon","OR"]
["Santa Clarita","California","CA",null,null,null,"Pennsylvania","PA"]
["Garden Grove","California","CA",null,null,null,"Rhode Island","RI"]
["Oceanside","California","CA",null,null,null,"South Carolina","SC"]
["Santa Rosa","California","CA",null,null,null,"South Dakota","SD"]
["Rancho Cucamonga","California","CA",null,null,null,"Tennessee","TN"]
["Ontario","California","CA",null,null,null,"Texas","TX"]
["Elk Grove","California","CA",null,null,null,"Utah","UT"]
["Lancaster","California","CA",null,null,null,"Vermont","VT"]
["Corona","California","CA",null,null,null,"Virginia","VA"]
["Palmdale","California","CA",null,null,null,"Washington","WA"]
["Salinas","California","CA",null,null,null,"West Virginia","WV"]
["Hayward","California","CA",null,null,null,"Wisconsin","WI"]
["Pomona","California","CA",null,null,null,"Wyoming","WY"]
["Escondido","California","CA"]
["Sunnyvale","California","CA"]
["Torrance","California","CA"]
["Orange","California","CA"]
["Pasadena","California","CA"]
["Fullerton","California","CA"]
["Thousand Oaks","California","CA"]
["Visalia","California","CA"]
["Roseville","California","CA"]
["Simi Valley","California","CA"]
["Concord","California","CA"]
["Victorville","California","CA"]
["Santa Clara","California",{"$f":"VLOOKUP(B67,$G$5:$H$54,2)","v":"CA"}]
["Vallejo","California","CA"]
["Berkeley","California","CA"]
["El Monte","California","CA"]
["Downey","California","CA"]
["Costa Mesa","California","CA"]
["Inglewood","California","CA"]
["Carlsbad","California","CA"]
["Fairfield","California","CA"]
["Ventura","California","CA"]
["West Covina","California","CA"]
["Richmond","California","CA"]
["Murrieta","California","CA"]
["Antioch","California","CA"]
["Temecula","California","CA"]
["Norwalk","California","CA"]
["Daly City","California","CA"]
["Burbank","California","CA"]
["Santa Maria","California","CA"]
["El Cajon","California","CA"]
["Rialto","California","CA"]
["San Mateo","California","CA"]
["Denver","Colorado","CO"]
["Colorado Springs","Colorado","CO"]
["Aurora","Colorado","CO"]
["Fort Collins","Colorado","CO"]
["Lakewood","Colorado","CO"]
["Thornton","Colorado","CO"]
["Arvada","Colorado","CO"]
["Westminster","Colorado","CO"]
["Pueblo","Colorado","CO"]
["Centennial","Colorado","CO"]
["Boulder","Colorado","CO"]
["Bridgeport","Connecticut","CT"]
["New Haven","Connecticut","CT"]
["Stamford","Connecticut","CT"]
["Hartford","Connecticut","CT"]
["Waterbury","Connecticut","CT"]
["Washington","District of Columbia","DE"]
["Jacksonville","Florida","FL"]
["Miami","Florida","FL"]
["Tampa","Florida","FL"]
["Orlando","Florida","FL"]
["St. Petersburg","Florida","FL"]
["Hialeah","Florida","FL"]
["Tallahassee","Florida","FL"]
["Fort Lauderdale","Florida","FL"]
["Port St. Lucie","Florida","FL"]
["Cape Coral","Florida","FL"]
["Pembroke Pines","Florida","FL"]
["Hollywood","Florida","FL"]
["Miramar","Florida","FL"]
["Gainesville","Florida","FL"]
["Coral Springs","Florida","FL"]
["Miami Gardens","Florida","FL"]
["Clearwater","Florida","FL"]
["Palm Bay","Florida","FL"]
["Pompano Beach","Florida","FL"]
["West Palm Beach","Florida","FL"]
["Lakeland","Florida","FL"]
["Atlanta","Georgia","GA"]
["Columbus","Georgia","GA"]
["Augusta","Georgia","GA"]
["Savannah","Georgia","GA"]
["Athens","Georgia",{"$f":"VLOOKUP(B131,$G$5:$H$54,2)","v":"GA"}]
["Honolulu","Hawai'i","HI"]
["Des Moines","Iowa","IA"]
["Cedar Rapids","Iowa","IA"]
["Davenport","Iowa","IA"]
["Boise","Idaho","ID"]
["Chicago","Illinois","IL"]
["Aurora","Illinois","IL"]
["Rockford","Illinois","IL"]
["Joliet","Illinois","IL"]
["Naperville","Illinois","IL"]
["Springfield","Illinois","IL"]
["Peoria","Illinois","IL"]
["Elgin","Illinois","IL"]
["Indianapolis","Indiana","IN"]
["Fort Wayne","Indiana","IN"]
["Evansville","Indiana","IN"]
["South Bend","Indiana","IN"]
["Wichita","Kansas","KS"]
["Overland Park","Kansas","KS"]
["Kansas City","Kansas","KS"]
["Olathe","Kansas","KS"]
["Topeka","Kansas","KS"]
["Louisville","Kentucky","KY"]
["Lexington","Kentucky","KY"]
["New Orleans","Louisiana","LA"]
["Baton Rouge","Louisiana","LA"]
["Shreveport","Louisiana","LA"]
["Lafayette","Louisiana","LA"]
["Boston","Massachusetts","MA"]
["Worcester","Massachusetts","MA"]
["Springfield","Massachusetts","MA"]
["Lowell","Massachusetts","MA"]
["Cambridge","Massachusetts","MA"]
["Baltimore","Maryland","MD"]
["Detroit","Michigan","MI"]
["Grand Rapids","Michigan","MI"]
["Warren","Michigan","MI"]
["Sterling Heights","Michigan","MI"]
["Ann Arbor","Michigan","MI"]
["Lansing","Michigan","MI"]
["Minneapolis","Minnesota","MN"]
["Saint Paul","Minnesota","MN"]
["Rochester","Minnesota","MN"]
["Kansas City","Missouri","MO"]
["St. Louis","Missouri","MO"]
["Springfield","Missouri","MO"]
["Independence","Missouri","MO"]
["Columbia","Missouri","MO"]
["Jackson","Mississippi","MS"]
["Billings","Montana","MT"]
["Charlotte","North Carolina","NC"]
["Raleigh","North Carolina","NC"]
["Greensboro","North Carolina","NC"]
["Durham","North Carolina","NC"]
["Winston–Salem","North Carolina","NC"]
["Fayetteville","North Carolina","NC"]
["Cary","North Carolina","NC"]
["Wilmington","North Carolina","NC"]
["High Point","North Carolina","NC"]
["Fargo","North Dakota","ND"]
["Omaha","Nebraska","NE"]
["Lincoln","Nebraska","NE"]
["Manchester","New Hampshire","NH"]
["Newark","New Jersey",{"$f":"VLOOKUP(B195,$G$5:$H$54,2)","v":"NJ"}]
["Jersey City","New Jersey","NJ"]
["Paterson","New Jersey","NJ"]
["Elizabeth","New Jersey","NJ"]
["Edison","New Jersey","NJ"]
["Woodbridge","New Jersey","NJ"]
["Albuquerque","New Mexico","NM"]
["Las Cruces","New Mexico","NM"]
["Las Vegas","Nevada","NV"]
["Henderson","Nevada","NV"]
["Reno","Nevada","NV"]
["North Las Vegas","Nevada","NV"]
["New York","New York","NY"]
["Buffalo","New York","NY"]
["Rochester","New York","NY"]
["Yonkers","New York","NY"]
["Syracuse","New York","NY"]
["Columbus","Ohio","OH"]
["Cleveland","Ohio","OH"]
["Cincinnati","Ohio","OH"]
["Toledo","Ohio","OH"]
["Akron","Ohio","OH"]
["Dayton","Ohio","OH"]
["Oklahoma City","Oklahoma","OK"]
["Tulsa","Oklahoma","OK"]
["Norman","Oklahoma","OK"]
["Broken Arrow","Oklahoma","OK"]
["Portland","Oregon","OR"]
["Salem","Oregon","OR"]
["Eugene","Oregon","OR"]
["Gresham","Oregon","OR"]
["Philadelphia","Pennsylvania","PA"]
["Pittsburgh","Pennsylvania","PA"]
["Allentown","Pennsylvania","PA"]
["Erie","Pennsylvania","PA"]
["Providence","Rhode Island","RI"]
["Columbia","South Carolina","SC"]
["Charleston","South Carolina","SC"]
["North Charleston","South Carolina","SC"]
["Sioux Falls","South Dakota","SD"]
["Memphis","Tennessee","TN"]
["Nashville","Tennessee","TN"]
["Knoxville","Tennessee","TN"]
["Chattanooga","Tennessee","TN"]
["Clarksville","Tennessee","TN"]
["Murfreesboro","Tennessee","TN"]
["Houston","Texas","TX"]
["San Antonio","Texas","TX"]
["Dallas","Texas","TX"]
["Austin","Texas","TX"]
["Fort Worth","Texas","TX"]
["El Paso","Texas","TX"]
["Arlington","Texas","TX"]
["Corpus Christi","Texas","TX"]
["Plano","Texas","TX"]
["Laredo","Texas","TX"]
["Lubbock","Texas","TX"]
["Garland","Texas","TX"]
["Irving","Texas","TX"]
["Amarillo","Texas","TX"]
["Grand Prairie","Texas","TX"]
["Brownsville","Texas","TX"]
["Pasadena","Texas","TX"]
["McKinney","Texas","TX"]
["Mesquite","Texas",{"$f":"VLOOKUP(B259,$G$5:$H$54,2)","v":"TX"}]
["Killeen","Texas","TX"]
["Frisco","Texas","TX"]
["McAllen","Texas","TX"]
["Waco","Texas","TX"]
["Carrollton","Texas","TX"]
["Midland","Texas","TX"]
["Denton","Texas","TX"]
["Abilene","Texas","TX"]
["Beaumont","Texas","TX"]
["Odessa","Texas","TX"]
["Round Rock","Texas","TX"]
["Wichita Falls","Texas","TX"]
["Richardson","Texas","TX"]
["Lewisville","Texas","TX"]
["Tyler","Texas","TX"]
["Pearland","Texas","TX"]
["College Station","Texas","TX"]
["Salt Lake City","Utah","UT"]
["West Valley City","Utah","UT"]
["Provo","Utah","UT"]
["West Jordan","Utah","UT"]
["Virginia Beach","Virginia","VA"]
["Norfolk","Virginia","VA"]
["Chesapeake","Virginia","VA"]
["Richmond","Virginia","VA"]
["Newport News","Virginia","VA"]
["Alexandria","Virginia","VA"]
["Hampton","Virginia","VA"]
["Seattle","Washington","WA"]
["Spokane","Washington","WA"]
["Tacoma","Washington","WA"]
["Vancouver","Washington","WA"]
["Bellevue","Washington","WA"]
["Kent","Washington","WA"]
["Everett","Washington","WA"]
["Milwaukee","Wisconsin","WI"]
["Madison","Wisconsin","WI"]
["Green Bay","Wisconsin","WI"]

{"sheet":"Web Info","index":2,"n_rows":61,"n_cols":3,"rows_kept":61,"cut":false,"hidden":false,"merged":[]}
[]
["Edit Account   |   About membership"]
["Real Estate"]
["Mortgages"]
["Compare Schools"]
["Compare Cities"]
["Compare Climates"]
["Blog"]
[]
["Lists"]
["Compare Crime Rates"]
["Compare Cost Of Living"]
["Best Places to Live"]
["Studies"]
["Search for any place in the USA:"]
["Home >"]
["United States >"]
["Alabama > Birmingham-Hoover Metro Area > Jefferson County > Birmingham > Zip Codes"]
[]
["Cost of Living in Birmingham, Alabama"]
[]
["Overview, People, Health, Economy, Housing, Rankings, Climate"]
["Crime, Comments, Transportation, Cost of Living, Religion, Voting"]
[]
["Cost of Living","Birmingham, AL","United States"]
["Overall",78,100]
["Grocery",92,100]
["Health",78,100]
["Housing",51,100]
["Utilities",103,100]
["Transportation",86,100]
["Miscellaneous",95,100]
[]
[]
["Our cost of living indices are based on a US average of 100. An amount below 100 means Birmingham, AL is cheaper than the US average. A cost of living index above 100 means Birmingham, AL is more expensive."]
[]
["Overall, Birmingham, AL cost of living is 78.10."]
[]
[]
[]
["Birmingham Cost of Living SperlingViews"]
[]
["cost of living: cost of... (read more)Life in Birmingham: Birmingham has been a great place. I came from more affordable housing so home prices have been a little bit of a shock; however, they are not as bad as Atlanta and the... (read more)Coming from someone who just moved here....: I currently attend school here in downtown Birmingham. If you plan on moving to Birmingham, having your own transportation is a must! Everything is located on the... (read more)Have an opinion about Birmingham? Leave a commentTo See All SperlingViews for Birmingham Click Here"]
[]
["Birmingham General SperlingViews"]
[]
["re: Birmingham not the place - 1/3/2013: live in NYC but my BF is in the ARMY & will be stationed there in a few months so I WAS willing to give it a chance but don't know now...Thanks I will have to continue... (read more)re: Birmingham not the place - 1/3/2013: I see the violence on The First 48. I live an hour from B'ham and I was looking to move there. However, after reading this post I'm looking at other areas. Any... (read more)Birmingham not the place: I have lived here for 12 years, and don't like it at all. My family and I live outside of Birmingham in a suburb. The suburbs are nice, quiet and the cost of living is... (read more)Have an opinion about Birmingham? Leave a commentTo See All SperlingViews for Birmingham Click Here"]
[]
[]
[]
["About Our Data"]
["About Sperling's"]
["Become a Partner"]
["Contact"]
["Copyright"]
["Disclaimer"]
["Privacy Policy"]
["Sponsorship"]
["Press Signup"]
["2014 © Best Places to Live & Retire, Homes for Sale"]
["Quantcast"]